fUST/lending_fUST_20250424
["ID","MTS","AMOUNT","RATE_DAILY","PERIOD"]
[358795147,1745436644336,-500.0,0.00024373,2]
[358795148,1745436644351,-500.0,0.00024373,2]
[358795149,1745436644365,-500.0,0.00024373,2]
[358795150,1745436644380,-449.11029804,0.00024373,2]
[358795151,1745436644395,-500.0,0.00024373,2]
[358795152,1745436644411,-500.0,0.00024373,2]
[358795153,1745436644427,-500.0,0.00024373,2]
[358795154,1745436644442,-500.0,0.00024373,2]
[358795155,1745436644458,-500.0,0.00024373,2]
[358795156,1745436644474,-500.0,0.00024373,2]
[358795157,1745436644491,-500.0,0.00024373,2]
[358795158,1745436644512,-500.0,0.00024373,2]
[358795159,1745436644528,-500.0,0.00024373,2]
[358795160,1745436644543,-151.0,0.00024373,7]
[358795161,1745436644558,-151.0,0.00024373,7]
[358795162,1745436644574,-151.0,0.00024373,7]
[358795163,1745436644588,-151.0,0.00024373,7]
[358795164,1745436644606,-151.0,0.00024373,7]
[358795165,1745436644622,-151.0,0.00024373,7]
[358795166,1745436644637,-151.0,0.00024373,7]
[358795167,1745436644652,-151.0,0.00024373,7]
[358795168,1745436644668,-251.987073,0.00024373,7]
[358795169,1745436644683,-251.987073,0.00024373,7]
[358795171,1745436644698,-281.902977,0.00024373,7]
[358795172,1745436644714,-281.902977,0.00024373,7]
[358795173,1745436644728,-151.059585,0.00024373,7]
[358795174,1745436644743,-151.059585,0.00024373,7]
[358795175,1745436644758,-151.059585,0.00024373,7]
[358795176,1745436644773,-151.059585,0.00024373,7]
[358795177,1745436644784,-151.0,0.00024373,7]
[358795178,1745436644795,-151.0,0.00024373,7]
[358795179,1745436644806,-151.0,0.00024373,7]
[358795180,1745436644816,-329.268756,0.00024373,2]
[358795181,1745436644825,-329.268756,0.00024373,2]
[358795182,1745436644835,-151.0,0.00024373,7]
[358795183,1745436644846,-151.0,0.00024373,7]
[358795184,1745436645109,-151.0,0.00024373,7]
[358795185,1745436645120,-329.268756,0.00024373,2]
[358795186,1745436645130,-329.268756,0.00024373,2]
[358795187,1745436645140,-151.0,0.00024373,7]
[358795188,1745436645150,-151.0,0.00024373,7]
[358795189,1745436645160,-2523.502029,0.00024373,7]
[358795190,1745436645170,-2523.502029,0.00024373,7]
[358795191,1745436645181,-1221.936969,0.00024373,7]
[358795192,1745436645190,-238.325384,0.00024373,7]
[358795193,1745436645200,-238.325384,0.00024373,7]
[358795194,1745436645210,-238.325384,0.00024373,7]
[358795195,1745436645220,-238.325384,0.00024373,7]
[358795196,1745436645230,-151.0,0.00024373,7]
[358795197,1745436645240,-151.0,0.00024373,7]
[358795198,1745436645250,-151.0,0.00024373,7]
[358795199,1745436645260,-151.0,0.00024373,7]
[358795200,1745436645270,-175.268455,0.00024373,7]
[358795201,1745436645279,-321.619746,0.00024373,7]
[358795202,1745436645290,-321.619746,0.00024373,7]
[358795203,1745436645300,-942.809062,0.00024373,7]
[358795204,1745436645309,-942.809063,0.00024373,7]
[358795205,1745436645319,-151.0,0.00024373,7]
[358795206,1745436645329,-846.281588,0.00024373,7]
[358795207,1745436645338,-846.281596,0.00024373,7]
[358795208,1745436645348,-3316.061954,0.00024373,7]
[358795209,1745436645357,-3316.061959,0.00024373,7]
[358795210,1745436645366,-175.898894,0.00024373,7]
[358795211,1745436645375,-175.898894,0.00024373,7]
[358795212,1745436645385,-151.0,0.00024373,7]
[358795213,1745436645394,-151.0,0.00024373,7]
[358795214,1745436645403,-151.0,0.00024374,7]
[358795215,1745436645413,-151.0,0.00024374,7]
[358795216,1745436645423,-151.0,0.00024374,7]
[358795217,1745436645432,-151.0,0.00024374,7]
[358795218,1745436645442,-151.0,0.00024374,7]
[358795219,1745436645452,-151.0,0.00024374,7]
[358795220,1745436645463,-151.0,0.00024374,7]
[358795221,1745436645472,-151.0,0.00024374,7]
[358795222,1745436645482,-251.987073,0.00024374,7]
[358795223,1745436645492,-251.987073,0.00024374,7]
[358795224,1745436645503,-281.902977,0.00024374,7]
[358795225,1745436645512,-281.902977,0.00024374,7]
[358795226,1745436645523,-281.902977,0.00024374,7]
[358795227,1745436645532,-281.902977,0.00024374,7]
[358795228,1745436645543,-281.902977,0.00024374,7]
[358795229,1745436645553,-281.902977,0.00024374,7]
[358795230,1745436645563,-151.0,0.00024374,7]
[358795231,1745436645573,-151.0,0.00024374,7]
[358795232,1745436645582,-151.0,0.00024374,7]
[358795233,1745436645596,-151.0,0.00024374,7]
[358795234,1745436645606,-151.0,0.00024374,7]
[358795235,1745436645615,-151.0,0.00024374,7]
[358795236,1745436645625,-151.0,0.00024374,7]
[358795237,1745436645635,-151.059585,0.00024374,7]
[358795238,1745436645644,-151.059585,0.00024374,7]
[358795239,1745436645654,-151.0,0.00024374,7]
[358795240,1745436645664,-329.268756,0.00024374,2]
[358795241,1745436645678,-151.0,0.00024374,7]
[358795242,1745436645689,-329.268756,0.00024374,2]
[358795243,1745436645699,-151.0,0.00024374,7]
[358795244,1745436645709,-448.254368,0.00024374,7]
[358795245,1745436645719,-448.254368,0.00024374,7]
[358795246,1745436645728,-448.254368,0.00024374,7]
[358795247,1745436645738,-448.254368,0.00024374,7]
[358795248,1745436645748,-448.254368,0.00024374,7]
[358795249,1745436645758,-448.254368,0.00024374,7]
[358795250,1745436645768,-2523.502029,0.00024374,7]
[358795251,1745436645778,-2523.502029,0.00024374,7]
[358795252,1745436645789,-1221.936969,0.00024374,7]
[358795254,1745436645801,-238.325384,0.00024374,7]
[358795255,1745436645811,-238.325384,0.00024374,7]
[358795256,1745436645821,-151.0,0.00024374,7]
[358795257,1745436645831,-151.0,0.00024374,7]
[358795258,1745436645840,-151.0,0.00024374,7]
[358795259,1745436645850,-902.532572,0.00024374,2]
[358795260,1745436645860,-902.532572,0.00024374,2]
[358795261,1745436645870,-151.0,0.00024374,7]
[358795262,1745436645879,-321.619746,0.00024374,7]
[358795263,1745436645889,-321.61974,0.00024374,7]
[358795264,1745436645899,-151.0,0.00024374,7]
[358795265,1745436645910,-151.0,0.00024374,7]
[358795266,1745436645920,-151.0,0.00024374,7]
[358795267,1745436645931,-244.790036,0.00024374,7]
[358795268,1745436645941,-244.790036,0.00024374,7]
[358795269,1745436645953,-151.0,0.00024374,7]
[358795270,1745436645963,-151.0,0.00024374,7]
[358795271,1745436645972,-231.33332,0.00024374,7]
[358795272,1745436645982,-231.33332,0.00024374,7]
[358795273,1745436645992,-151.0,0.00024374,7]
[358795274,1745436646003,-415.756354,0.00024374,7]
[358795275,1745436646012,-415.756354,0.00024374,7]
[358795276,1745436646022,-151.0,0.00024374,7]
[358795277,1745436646031,-482.499622,0.00024374,7]
[358795278,1745436646041,-322.508619,0.00024374,7]
[358795279,1745436646050,-482.499622,0.00024374,7]
[358795280,1745436646061,-322.508619,0.00024374,7]
[358795281,1745436646071,-965.306003,0.00024374,7]
[358795282,1745436646081,-965.306003,0.00024374,7]
[358795283,1745436646091,-151.0,0.00024374,7]
[358795284,1745436646100,-151.0,0.00024374,7]
[358795285,1745436646110,-151.0,0.00024374,7]
[358795286,1745436646120,-151.0,0.00024374,7]
[358795287,1745436646129,-12500.0,0.00024374,3]
[358795288,1745436646140,-12500.0,0.00024374,3]
[358795289,1745436646150,-12500.0,0.00024374,3]
[358795290,1745436646162,-12500.0,0.00024374,3]
[358795291,1745436646172,-12500.0,0.00024374,3]
[358795292,1745436646182,-151.0,0.00024383,7]
[358795293,1745436646192,-192.230154,0.00024383,7]
[358795294,1745436646202,-151.0,0.00024383,7]
[358795295,1745436646211,-12500.0,0.00024383,3]
[358795296,1745436646221,-12500.0,0.00024383,3]
[358795297,1745436646231,-151.0,0.00024383,7]
[358795298,1745436646241,-173.398846,0.00024383,7]
[358795299,1745436646253,-151.0,0.00024383,7]
[358795300,1745436646263,-151.0,0.00024383,7]
[358795302,1745436646273,-151.0,0.00024383,7]
[358795303,1745436646283,-151.0,0.00024383,7]
[358795304,1745436646293,-151.0,0.00024383,7]
[358795305,1745436646302,-151.0,0.00024383,7]
[358795306,1745436646312,-151.0,0.00024383,7]
[358795307,1745436646322,-151.0,0.00024383,7]
[358795308,1745436646332,-151.0,0.00024383,7]
[358795309,1745436646341,-151.0,0.00024383,7]
[358795310,1745436646351,-151.0,0.00024383,7]
[358795312,1745436646360,-151.0,0.00024383,7]
[358795314,1745436646370,-226.238183,0.00024383,7]
[358795316,1745436646380,-251.987073,0.00024383,7]
[358795317,1745436646390,-251.987073,0.00024383,7]
[358795318,1745436646400,-251.987073,0.00024383,7]
[358795319,1745436646409,-251.987073,0.00024383,7]
[358795320,1745436646419,-251.987073,0.00024383,7]
[358795321,1745436646430,-251.987073,0.00024383,7]
[358795322,1745436646440,-281.902977,0.00024383,7]
[358795323,1745436646450,-281.902977,0.00024383,7]
[358795324,1745436646461,-151.0,0.00024383,7]
[358795325,1745436646471,-12500.0,0.00024383,3]
[358795326,1745436646481,-151.0,0.00024383,7]
[358795327,1745436646492,-191.081218,0.00024383,7]
[358795328,1745436646502,-151.0,0.00024383,7]
[358795329,1745436646512,-151.059585,0.00024383,7]
[358795330,1745436646523,-151.059585,0.00024383,7]
[358795332,1745436646532,-151.0,0.00024383,7]
[358795333,1745436646542,-329.268756,0.00024383,2]
[358795334,1745436646552,-151.0,0.00024383,7]
[358795335,1745436646562,-329.268756,0.00024383,2]
[358795336,1745436646572,-448.254368,0.00024383,7]
[358795337,1745436646581,-448.254368,0.00024383,7]
[358795338,1745436646591,-2523.502029,0.00024383,7]
[358795339,1745436646603,-2523.502029,0.00024383,7]
[358795340,1745436646614,-1221.936969,0.00024383,7]
[358795341,1745436646623,-238.325384,0.00024383,7]
[358795342,1745436646634,-238.325384,0.00024383,7]
[358795343,1745436646644,-151.0,0.00024383,7]
[358795344,1745436646653,-11016.89796151,0.00024383,3]
[358795345,1745436646663,-902.532572,0.00024383,2]
[358795346,1745436646673,-902.532572,0.00024383,2]
[358795347,1745436646683,-902.532572,0.00024383,2]
[358795348,1745436646693,-902.5325783,0.00024383,2]
[358795349,1745436646703,-151.0,0.00024383,7]
[358795350,1745436646714,-151.0,0.00024383,7]
[358795351,1745436646723,-151.0,0.00024383,7]
[358795352,1745436646733,-12500.0,0.00024383,3]
[358795353,1745436646744,-151.0,0.00024383,7]
[358795354,1745436646754,-151.0,0.00024383,7]
[358795355,1745436646765,-244.790036,0.00024383,7]
[358795356,1745436646775,-244.790036,0.00024383,7]
[358795357,1745436646784,-151.0,0.00024383,7]
[358795358,1745436646794,-151.0,0.00024383,7]
[358795359,1745436646803,-151.0,0.00024383,7]
[358795360,1745436646813,-157.729517,0.00024383,7]
[358795361,1745436646823,-356.984825,0.00024383,7]
[358795362,1745436646833,-356.984825,0.00024383,7]
[358795363,1745436646843,-231.33332,0.00024383,7]
[358795364,1745436646853,-231.33332,0.00024383,7]
[358795365,1745436646863,-151.0,0.00024383,7]
[358795366,1745436646872,-175.898894,0.00024383,7]
[358795367,1745436646882,-175.898894,0.00024383,7]
[358795368,1745436646891,-415.756354,0.00024383,7]
[358795369,1745436646902,-415.756354,0.00024383,7]
[358795370,1745436646913,-202.888917,0.00024383,7]
[358795371,1745436646923,-482.499622,0.00024383,7]
[358795372,1745436646933,-322.508619,0.00024383,7]
[358795373,1745436646942,-482.499622,0.00024383,7]
[358795374,1745436646952,-322.508619,0.00024383,7]
[358795375,1745436646962,-965.306003,0.00024383,7]
[358795376,1745436646972,-965.306003,0.00024383,7]
[358795377,1745436646981,-151.0,0.00024383,7]
[358795378,1745436646991,-151.0,0.00024383,7]
[358795379,1745436647001,-151.0,0.00024383,7]
[358795380,1745436647010,-151.0,0.00024383,7]
[358795381,1745436647020,-12500.0,0.00024383,3]
[358795382,1745436647030,-151.0,0.00024383,7]
[358795383,1745436647039,-151.0,0.00024383,7]
[358795384,1745436647050,-151.0,0.00024392,7]
[358795385,1745436647060,-151.0,0.000244,6]
[358795386,1745436647070,-45115.3987709,0.00024403,2]
[358795387,1745436647081,-151.0,0.00024403,7]
[358795388,1745436647091,-158.65203,0.00024403,7]
[358795389,1745436647102,-178.327036,0.00024403,7]
[358795390,1745436647113,-151.0,0.00024403,7]
[358795391,1745436647122,-244.790036,0.00024403,7]
[358795392,1745436647132,-244.790036,0.00024403,7]
[358795393,1745436647142,-151.0,0.00024403,7]
[358795394,1745436647151,-151.0,0.00024403,7]
[358795395,1745436647161,-356.984825,0.00024403,7]
[358795396,1745436647171,-356.984825,0.00024403,7]
[358795397,1745436647181,-231.33332,0.00024403,7]
[358795398,1745436647191,-231.33332,0.00024403,7]
[358795399,1745436647203,-175.898894,0.00024403,7]
[358795400,1745436647213,-175.898894,0.00024403,7]
[358795401,1745436647224,-151.0,0.00024403,7]
[358795402,1745436647233,-241.009101,0.00024403,7]
[358795403,1745436647244,-104856.06959799,0.00024446,2]
[358795404,1745436647723,-539881.42271447,0.00024446,2]
[358795405,1745436647733,-2087.01775725,0.00024446,3]
[358795406,1745436647746,-4907.44664022,0.00024446,3]
[358795407,1745436648993,-160.0,0.00020565,2]
[358795408,1745436649003,-160.0,0.00021659,3]
[358795409,1745436649014,-160.0,0.00023348,7]
[358795410,1745436649024,-471.296687,0.00024339,7]
[358795411,1745436649034,-471.296687,0.00024365,7]
[358795412,1745436649044,-437.406626,0.00024374,7]
[358795454,1745437334429,-200.0848344,0.00018758,2]
[358795523,1745437833150,-33.2774356,0.00018758,2]
[358795524,1745437833160,-786.71739861,0.000189,2]
[358795525,1745437833170,-250.0,0.00018986,2]
[358795526,1745437833180,-580.25516579,0.00018986,2]
[358795529,1745437838363,-419.74483421,0.00018986,2]
[358795530,1745437838374,-546.687943,0.00019214,2]
[358795531,1745437838384,-1334.71590362,0.00019653,2]
[358795532,1745437838394,-167.967719,0.00019746,2]
[358795533,1745437838404,-566.28654943,0.00019752,2]
[358795534,1745437838413,-500.0,0.00019752,2]
[358795536,1745437838423,-500.0,0.00019752,2]
[358795537,1745437838434,-500.0,0.00019752,2]
[358795539,1745437838443,-500.0,0.00019752,2]
[358795541,1745437838454,-163.55061579,0.00019752,2]
[358795543,1745437838464,-500.0,0.00019752,2]
[358795545,1745437838474,-188.07450413,0.00019752,2]
[358795547,1745437838483,-347.69794073,0.00019752,2]
[358795549,1745437838497,-152.30205927,0.00019752,2]
[358795551,1745437838508,-500.0,0.00019752,2]
[358795553,1745437838519,-500.0,0.00019752,2]
[358795555,1745437838529,-382.70692903,0.00019752,2]
[358795557,1745437838540,-212.91532681,0.00019752,2]
[358795559,1745437838549,-500.0,0.00019752,2]
[358795562,1745437838559,-500.0,0.00019752,2]
[358795563,1745437838569,-500.0,0.00019752,2]
[358795565,1745437838578,-500.0,0.00019752,2]
[358795567,1745437838588,-500.0,0.00019752,2]
[358795569,1745437838597,-500.0,0.00019752,2]
[358795571,1745437838607,-500.0,0.00019752,2]
[358795573,1745437838616,-500.0,0.00019752,2]
[358795575,1745437838626,-500.0,0.00019752,2]
[358795577,1745437838635,-500.0,0.00019752,2]
[358795579,1745437838645,-500.0,0.00019752,2]
[358795581,1745437838655,-500.0,0.00019752,2]
[358795583,1745437838664,-500.0,0.00019752,2]
[358795585,1745437838674,-500.0,0.00019752,2]
[358795587,1745437838684,-329.65427645,0.00019752,2]
[358795589,1745437838694,-500.0,0.00019752,2]
[358795591,1745437838703,-500.0,0.00019752,2]
[358795593,1745437838714,-500.0,0.00019752,2]
[358795595,1745437838723,-500.0,0.00019752,2]
[358795597,1745437838733,-500.0,0.00019752,2]
[358795599,1745437838743,-500.0,0.00019752,2]
[358795601,1745437838753,-500.0,0.00019752,2]
[358795603,1745437838763,-300.0,0.00019752,2]
[358795605,1745437838772,-900.0,0.00019752,2]
[358795607,1745437838782,-50000.0,0.00019753,2]
[358795609,1745437838791,-474.83,0.0001976,2]
[358795611,1745437838801,-500.0,0.00019773,2]
[358795613,1745437838810,-500.0,0.00019773,2]
[358795615,1745437838819,-500.0,0.00019773,2]
[358795617,1745437838829,-568.1204122,0.00019773,2]
[358795619,1745437838838,-500.0,0.00019773,2]
[358795621,1745437838847,-450.54130739,0.00019773,2]
[358795623,1745437838857,-500.0,0.00019773,2]
[358795625,1745437838866,-500.0,0.00019773,2]
[358795626,1745437838876,-500.0,0.00019773,2]
[358795628,1745437838886,-500.0,0.00019773,2]
[358795630,1745437838896,-500.0,0.00019773,2]
[358795632,1745437838905,-500.0,0.00019773,2]
[358795634,1745437838915,-500.0,0.00019773,2]
[358795636,1745437838925,-500.0,0.0001995,2]
[358795638,1745437838934,-11693.69652779,0.00019973,2]
[358795640,1745437838944,-300.0,0.000201,2]
[358795642,1745437838953,-500.0,0.000201,2]
[358795644,1745437838966,-500.0,0.000201,2]
[358795646,1745437838975,-500.0,0.000201,2]
[358795648,1745437838985,-500.0,0.000201,2]
[358795650,1745437838995,-500.0,0.000201,2]
[358795652,1745437839005,-500.0,0.000201,2]
[358795654,1745437839015,-500.0,0.000201,2]
[358795656,1745437839024,-152.0,0.00020127,2]
[358795658,1745437839033,-160.0,0.00020339,2]
[358795660,1745437839043,-160.0,0.00020339,2]
[358795662,1745437839053,-420.82143104,0.00020339,2]
[358795664,1745437839062,-12573.79847128,0.00020339,2]
[358795666,1745437839072,-160.0,0.00020339,2]
[358795668,1745437839081,-160.0,0.00020339,2]
[358795670,1745437839090,-839.95942076,0.00020339,2]
[358795672,1745437839100,-160.0,0.00020339,2]
[358795674,1745437839109,-160.0,0.00020339,2]
[358795675,1745437839121,-160.0,0.00020339,2]
[358795677,1745437839132,-151.0,0.00020758,2]
[358795679,1745437839141,-198.0,0.00020773,2]
[358795681,1745437839150,-151.0,0.00020773,2]
[358795683,1745437839160,-151.0,0.00020773,2]
[358795685,1745437839169,-151.0,0.00020773,2]
[358795687,1745437839178,-151.0,0.00020773,2]
[358795689,1745437839192,-151.0,0.00020773,2]
[358795691,1745437839201,-151.0,0.00020773,2]
[358795693,1745437839210,-154.69051424,0.00020773,2]
[358795695,1745437839219,-151.0,0.00020773,2]
[358795697,1745437839231,-2773.78,0.000209,2]
[358795700,1745437839240,-4146.14152633,0.000209,3]
[358795702,1745437839250,-500.0,0.00021,2]
[358795704,1745437839260,-500.0,0.00021,2]
[358795706,1745437839270,-500.0,0.00021,2]
[358795708,1745437839280,-442.63871124,0.00021,2]
[358795719,1745437839378,-57.36128876,0.00021,2]
[358795721,1745437839388,-500.0,0.00021,2]
[358795723,1745437839397,-500.0,0.00021,2]
[358795725,1745437839407,-700.0,0.00021,2]
[358795727,1745437839417,-700.0,0.00021,2]
[358795729,1745437839426,-700.0,0.00021,2]
[358795731,1745437839436,-700.0,0.00021,2]
[358795733,1745437839446,-700.0,0.00021,2]
[358795735,1745437839456,-700.0,0.00021,2]
[358795737,1745437839466,-700.0,0.00021,2]
[358795739,1745437839475,-700.0,0.00021,2]
[358795741,1745437839484,-700.0,0.00021,2]
[358795742,1745437839494,-700.0,0.00021,2]
[358795744,1745437839504,-700.0,0.00021,2]
[358795745,1745437839512,-700.0,0.00021,2]
[358795746,1745437839522,-700.0,0.00021,2]
[358795747,1745437839532,-500.0,0.00021,2]
[358795748,1745437839541,-500.0,0.00021,2]
[358795749,1745437839551,-500.0,0.00021,2]
[358795750,1745437839560,-500.0,0.00021,2]
[358795751,1745437839570,-500.0,0.00021,2]
[358795752,1745437839580,-500.0,0.00021,2]
[358795753,1745437839591,-500.0,0.00021,2]
[358795754,1745437839600,-500.0,0.00021,2]
[358795755,1745437839610,-500.0,0.00021,2]
[358795756,1745437839623,-500.0,0.00021,2]
[358795757,1745437839633,-500.0,0.00021,2]
[358795758,1745437839643,-500.0,0.00021,2]
[358795759,1745437839652,-157.04,0.00021,2]
[358795760,1745437839662,-151.0,0.00021047,2]
[358795761,1745437839671,-151.0,0.00021047,2]
[358795762,1745437839680,-232.77955801,0.00021047,2]
[358795763,1745437839690,-151.0,0.00021047,2]
[358795764,1745437839699,-245.0,0.00021047,2]
[358795765,1745437839709,-151.0,0.00021306,2]
[358795766,1745437839719,-151.0,0.00021321,2]
[358795767,1745437839728,-151.0,0.00021321,2]
[358795768,1745437839738,-517.8301987,0.00021453,2]
[358795769,1745437839748,-420.0,0.00021513,2]
[358795770,1745437839757,-245.0,0.00021595,2]
[358795771,1745437839767,-198.0,0.00021595,2]
[358795772,1745437839777,-500.0,0.00021658,2]
[358795773,1745437839786,-164.4293109,0.00021658,2]
[358795774,1745437839796,-4146.14152627,0.00021659,3]
[358795775,1745437839806,-600.0,0.00021744,2]
[358795776,1745437839816,-151.0,0.00021854,2]
[358795777,1745437839826,-161.6533751,0.00021917,2]
[358795778,1745437840027,-166.0,0.00021918,2]
[358795779,1745437840039,-152.0,0.00022,2]
[358795780,1745437840050,-151.0,0.00022,2]
[358795781,1745437840061,-590.91632609,0.0002237,2]
[358795782,1745437840071,-151.0,0.00022402,2]
[358795783,1745437840081,-4146.14152627,0.00022417,4]
[358795784,1745437840091,-299.056068,0.00022451,2]
[358795785,1745437840101,-544.0,0.00022505,2]
[358795786,1745437840111,-2246.0,0.00022505,2]
[358795787,1745437840122,-706.0,0.00022505,2]
[358795788,1745437840132,-250.823,0.00022505,2]
[358795789,1745437840142,-1334.71590357,0.00022885,2]
[358795790,1745437840151,-211.37708776,0.000229,2]
[358795791,1745437840161,-211.37708777,0.000229,2]
[358795792,1745437840170,-151.0,0.0002295,2]
[358795793,1745437840180,-21.29328775,0.00023014,2]
[358795794,1745437840466,-130.70671225,0.00023014,2]
[358795795,1745437840476,-151.0,0.00023014,2]
[358795796,1745437840486,-2992.2087682,0.00023176,4]
[358795797,1745437840498,-1153.93275807,0.00023176,4]
[358795798,1745437840507,-900.0,0.00023388,2]
[358795799,1745437840517,-587.0,0.00023431,2]
[358795800,1745437840526,-151.0,0.00023498,2]
[358795801,1745437840536,-786.71739861,0.000239,2]
[358795802,1745437840545,-4146.14152627,0.00023934,5]
[358795803,1745437840555,-530.526,0.00023967,5]
[358795805,1745437840564,-151.0,0.00024046,2]
[358795806,1745437840574,-160.0,0.0002428,3]
[358795808,1745437840584,-160.0,0.0002428,3]
[358795810,1745437840593,-160.0,0.0002428,3]
[358795811,1745437840603,-420.82143104,0.0002428,3]
[358795812,1745437840612,-2105.22382979,0.0002428,3]
[358795813,1745437840625,-2855.36818463,0.0002428,3]
[358795814,1745437840637,-7613.20645686,0.0002428,3]
[358795815,1745437840646,-160.0,0.0002428,3]
[358795816,1745437840655,-160.0,0.0002428,3]
[358795817,1745437840665,-1927.7953548,0.000243,2]
[358795818,1745437840680,-572.2046452,0.000243,2]
[358795819,1745437840690,-151.0,0.000243,7]
[358795820,1745437840700,-151.0,0.000243,7]
[358795822,1745437840709,-500.0,0.00024313,2]
[358795823,1745437840718,-500.0,0.00024313,2]
[358795824,1745437840728,-893.17869661,0.00024323,2]
[358795838,1745437843526,-839.95942076,0.0002428,3]
[358795839,1745437843537,-4421.49580259,0.00024323,2]
[358795840,1745437843547,-247.085935,0.00024339,7]
[358795841,1745437843556,-247.085935,0.00024339,7]
[358795842,1745437843565,-151.0,0.00024339,7]
[358795843,1745437843576,-151.0,0.00024339,7]
[358795844,1745437843585,-151.0,0.00024339,7]
[358795845,1745437843595,-1766.45142,0.00024339,7]
[358795846,1745437843604,-1766.45142,0.00024339,7]
[358795847,1745437843613,-151.0,0.00024339,7]
[358795848,1745437843623,-1691.5729598,0.00024346,2]
[358795850,1745437843633,-247.085935,0.00024365,7]
[358795852,1745437843643,-247.085935,0.00024365,7]
[358795853,1745437843652,-151.0,0.00024365,7]
[358795854,1745437843662,-151.0,0.00024365,7]
[358795855,1745437843672,-203.896575,0.00024365,7]
[358795856,1745437843681,-1766.45142,0.00024365,7]
[358795857,1745437843691,-1766.45142,0.00024365,7]
[358795858,1745437843700,-151.0,0.00024365,7]
[358795859,1745437843710,-160.0,0.00024365,7]
[358795860,1745437843720,-160.0,0.00024365,7]
[358795861,1745437843730,-160.0,0.00024365,7]
[358795862,1745437843739,-420.82143104,0.00024365,7]
[358795863,1745437843749,-12573.79847128,0.00024365,7]
[358795864,1745437843759,-160.0,0.00024365,7]
[358795865,1745437843769,-160.0,0.00024365,7]
[358795866,1745437843779,-839.95942076,0.00024365,7]
[358795867,1745437843789,-247.085935,0.00024374,7]
[358795868,1745437843798,-247.085935,0.00024374,7]
[358795869,1745437843808,-151.0,0.00024374,7]
[358795870,1745437843817,-151.0,0.00024374,7]
[358795871,1745437843827,-1766.45142,0.00024374,7]
[358795872,1745437843836,-1766.45142,0.00024374,7]
[358795873,1745437843846,-151.0,0.00024374,7]
[358795874,1745437843856,-247.085935,0.00024383,7]
[358795875,1745437843865,-247.085935,0.00024383,7]
[358795876,1745437843875,-151.0,0.00024383,7]
[358795877,1745437843886,-151.0,0.00024383,7]
[358795878,1745437843895,-1766.45142,0.00024383,7]
[358795879,1745437843905,-1766.45142,0.00024383,7]
[358795880,1745437843915,-1038.646424,0.00024383,7]
[358795881,1745437843925,-151.0,0.00024383,7]
[358795882,1745437843934,-595.5,0.00024392,15]
[358795883,1745437843944,-633.0,0.000244,2]
[358795884,1745437843954,-107891.32735457,0.00024446,2]
[358795885,1745437843966,-965.306003,0.00024446,7]
[358795886,1745437843976,-965.306003,0.00024446,7]
[358795887,1745437843986,-151.0,0.00024446,7]
[358795888,1745437843997,-151.0,0.00024446,7]
[358795889,1745437844010,-151.0,0.00024446,7]
[358795890,1745437844020,-213.087188,0.00024446,7]
[358795891,1745437844032,-247.085935,0.00024446,7]